Cogmind - Beta 15 @@@ ROGUE MODE // 2025.08.25 @ 08:49:21 Player: shapeshifter Result: Destroyed by D-53 Grenadier with Mini Grenade Launcher Performance ------------- Evolutions (0) 0 Regions Visited (4) 800 Robots Destroyed (13) 65 Value Destroyed (242) 242 Prototype IDs (23) 460 Alien Tech Used (0) 0 Bonus (300) 300 TOTAL SCORE: 1867 Bonus ------- Aligned with FarCom 300 Cogmind --------- Core Integrity 0/250 Matter 280/300 Energy 91/100 System Corruption 0% Temperature Cool (0) Movement Walking (120) Location -9/Mines Parts ------- > --- POWER (1) -------- (None) > --- PROPULSION (2) --- Improved Aluminum Leg > --- UTILITY (2) ------ Medium Storage Unit > --- WEAPON (2) ------- (None) > --- INVENTORY (10) --- Aluminum Leg High-capacity Storage Unit High-capacity Storage Unit Superbattery (1500) High-capacity Matter Pod (200) Improved Terrain Scanner Small Laser Katana Peak State ------------ > --- POWER ------------ Ion Engine > --- PROPULSION ------- Light Treads Light Treads > --- UTILITY ---------- Medium Storage Unit Seismic Detector > --- WEAPON ----------- Heavy EM Pulse Gun Light EM Pulse Cannon > --- INVENTORY -------- Light Ion Engine Wheel Wheel High-capacity Storage Unit High-capacity Storage Unit Superbattery High-capacity Matter Pod Improved Terrain Scanner Assault Rifle Light Assault Rifle [Rating: 11] Favorites ----------- Power Ion Engine Engine Ion Engine Propulsion Light Treads Treads Light Treads Leg Aluminum Leg Wheel Wheel Utility Seismic Detector Device Seismic Detector Storage Medium Storage Unit Weapon Assault Rifle Energy Gun Small Laser Energy Cannon Light EM Pulse Cannon Ballistic Gun Assault Rifle Build | -11 -10 -10 -10 -9 ------- Run | Yrd Mat Min Exi Min Slots Evolved . | . . . . . Power . | . . . . . Propulsion . | . . . . . Utility . | . . . . . Weapon . | . . . . . Parts Attached 19 | 7 2 2 1 7 Power 2 | 1 . . . 1 Engine 2 | 1 . . . 1 Core . | . . . . . Reactor . | . . . . . Propulsion 6 | 2 . 2 . 2 Treads 2 | 2 . . . . Leg 2 | . . . . 2 Wheel 2 | . . 2 . . Hover . | . . . . . Flight . | . . . . . Utility 3 | 2 . . 1 . Device 1 | 1 . . . . Storage 2 | 1 . . 1 . Processor . | . . . . . Hackware . | . . . . . Protection . | . . . . . Artifact . | . . . . . Weapon 8 | 2 2 . . 4 Energy Gun 4 | 2 1 . . 1 Energy Cannon 1 | . . . . 1 Ballistic Gun 3 | . 1 . . 2 Ballistic Cannon . | . . . . . Launcher . | . . . . . Special Weapon . | . . . . . Impact Weapon . | . . . . . Slashing Weapon . | . . . . . Piercing Weapon . | . . . . . Special Melee Weapon . | . . . . . Unidentified Prototypes . | . . . . . Parts Lost 12 | . . . . 12 Power 2 | . . . . 2 Propulsion 4 | . . . . 4 Utility 1 | . . . . 1 Weapon 5 | . . . . 5 Highest Loss Streak 4 | . . . . 4 To Critical Strikes . | . . . . . Average Backups 7 | 3 6 5 6 9 Power . | . 1 1 1 . Propulsion 1 | 1 2 2 2 1 Utility 3 | . 1 1 2 5 Weapon 1 | . 2 1 1 1 Tool/Special . | . . . . . Unused Backups 7 | . . . . 7 Power . | . . . . . Propulsion . | . . . . . Utility 5 | . . . . 5 Weapon 2 | . . . . 2 Tool/Special . | . . . . . Average Slot Usage (%) 91 | . 99 100 100 82 Engine 11 | . 14 14 14 9 Treads 14 | . 28 18 . 14 Leg 2 | . . . . 4 Wheel 9 | . . 9 27 3 Device 12 | . 14 14 14 9 Storage 14 | . 14 14 14 14 Energy Gun 12 | . 27 14 14 6 Energy Cannon 1 | . . . . 2 Ballistic Gun 12 | . . 14 14 16 Peak Build Rating 11 | 7 7 7 9 11 Average Rating 7 | 4 6 7 7 8 On Entrance 6 | . 7 7 7 9 Naked Turns . | . . . . . Heaviest Build 23 | 15 15 14 19 23 Greatest Support 40 | 40 40 40 40 40 Greatest Overweight (x) 1 | . . . . 1 Average Overweight (x) . | . . . . . Largest Inventory Capacity 10 | 8 8 8 10 10 Average Capacity 9 | 7 8 8 9 10 Most Carried 10 | 6 7 5 9 10 Average Carried 7 | 3 6 5 6 9 Final Capacity 10 | 8 8 8 10 10 Final Carried 9 | 5 5 5 9 8 Class Distribution -------------------- 100% | Mutant Dominant Class ---------------- Mutant | -10/Materials Mutant | -10/Mines Mutant | -10/Exiles Mutant | -9/Mines Resources | -11 -10 -10 -10 -9 ----------- Run | Yrd Mat Min Exi Min Matter Collected 555 | 267 3 20 40 225 Remotely . | . . . . . Salvage Created 455 | 66 131 . . 258 Parts 29 | 7 7 . . 15 Haulers Intercepted 1 | . 1 . . . Recyclers Shooed 1 | . . . . 1 Parts Field Recycled . | . . . . . Retrieved Matter . | . . . . . Parts Self-Destructed . | . . . . . Prevented . | . . . . . Kills | -11 -10 -10 -10 -9 ------- Run | Yrd Mat Min Exi Min Combat Hostiles Destroyed 8 | . . . . 8 Guns 5 | . . . . 5 Cannons 1 | . . . . 1 AOE 2 | . . . . 2 Classes Destroyed 6 | 1 2 . . 3 Tunneler 3 | 3 . . . . Hauler 1 | . 1 . . . Recycler 1 | . 1 . . . Swarmer 3 | . . . . 3 Grunt 4 | . . . . 4 Duelist 1 | . . . . 1 Best Kill Streak 3 | 2 1 . . 3 Combat Bots Only 3 | . . . . 3 Max Kills in Single Turn 2 | 1 1 . . 2 Gunslinging 1 | . . . . 1 Exploded 2 | . . . . 2 Melee . | . . . . . Uniques/NPCs Destroyed . | . . . . . Combat | -11 -10 -10 -10 -9 -------- Run | Yrd Mat Min Exi Min Hostile Shots Fired 116 | . . 4 . 112 Missed 39 | . . 2 . 37 Hits 77 | . . 2 . 75 Melee 11 | . . . . 11 Projectile 66 | . . 2 . 64 AOE 7 | . . . . 7 Critical Strikes 1 | . . . . 1 Damage Taken 1271 | . . 26 . 1245 Core 279 | . . . . 279 Absorbed by Shields . | . . . . . Core Remaining (%) 100 | 100 . . . . Volleys Fired 51 | 7 4 . . 40 Largest 2 | 2 2 . . 2 Hottest 101 | 90 90 . . 101 Shots Fired 80 | 14 8 . . 58 Gun 72 | 14 8 . . 50 Cannon 8 | . . . . 8 Launcher . | . . . . . Special . | . . . . . Kinetic 40 | . . . . 40 Thermal 11 | 7 4 . . . Explosive . | . . . . . Electromagnetic 29 | 7 4 . . 18 Robot Hit Streak 10 | 5 10 . . 10 Robot Miss Streak 4 | 1 . . . 4 Penetration Max . | . . . . . Secondary Targets 1 | . . . . 1 Max Gunslinging Chain 1 | . . . . 1 Shots Hit Robots 59 | 11 6 . . 42 Core Hits 21 | 3 3 . . 15 Critical Kills . | . . . . . Critical Parts Destroyed . | . . . . . Critical Strikes 2 | 1 1 . . . Burn 1 | . 1 . . . Corrupt 1 | 1 . . . . Melee Attacks . | . . . . . Impact . | . . . . . Slashing . | . . . . . Piercing . | . . . . . Sneak Attacks . | . . . . . Combat Hostiles . | . . . . . Follow-up Attacks . | . . . . . Damage Inflicted 939 | 135 80 . . 724 Guns 676 | 135 80 . . 461 Cannons 92 | . . . . 92 Explosions 171 | . . . . 171 Melee . | . . . . . Ramming . | . . . . . Kinetic 377 | . . . . 377 Thermal 257 | 61 25 . . 171 Explosive . | . . . . . Electromagnetic 305 | 74 55 . . 176 Impact . | . . . . . Slashing . | . . . . . Piercing . | . . . . . Highest Corruption . | . . . . . Average Corruption . | . . . . . Corruption Purged . | . . . . . Corruption Blocked . | . . . . . Overload Shots . | . . . . . Overflow Damage 19 | . . . . 19 Projectiles . | . . . . . Explosions 19 | . . . . 19 Melee . | . . . . . Knockbacks . | . . . . . Impact . | . . . . . Kinetic . | . . . . . Secondary . | . . . . . Self-Inflicted Damage . | . . . . . Shots . | . . . . . Rammed . | . . . . . Targets Rammed . | . . . . . Kicked . | . . . . . Crushed . | . . . . . Highest Temperature 262 | 120 90 . . 262 Average Temperature 82 | 47 40 . . 105 Received Heat Transfer 336 | . . . . 336 Effects 1 | . . . . 1 Interference 1 | . . . . 1 Siege Activations . | . . . . . Martial Activations . | . . . . . Shielding Activations . | . . . . . Robots Disrupted . | . . . . . Combat Hostiles . | . . . . . Robots Corrupted . | . . . . . Combat Hostiles . | . . . . . Parts Fried 1 | 1 . . . . Impact Corruptions . | . . . . . Robots Melted . | . . . . . Combat Hostiles . | . . . . . Parts Melted . | . . . . . Heat Transferred 533 | 185 148 . . 200 Parts Sabotaged . | . . . . . Parts Stolen . | . . . . . Parts Stripped . | . . . . . Power Chain Reactions 2 | . . . . 2 Alert | -11 -10 -10 -10 -9 ------- Run | Yrd Mat Min Exi Min Maximum Alert Level . | . . . . . Low Security (%) 100 | 100 100 100 . 100 Level 1 . | . . . . . Level 2 . | . . . . . Level 3 . | . . . . . Level 4 . | . . . . . Level 5 . | . . . . . High Security . | . . . . . Max Security . | . . . . . Peak Influence 80 | 5 15 . . 80 Initial . | . . . . . Average 12 | . 1 . . 20 Influence Increases 223 | 15 27 . . 181 Destroy 0b10 Robot/C 160 | . . . . 160 Destroy 0b10 Robot/NC 25 | 15 10 . . . Destroy Leader 22 | . 2 . . 20 Destroy Structure 1 | . . . . 1 Lose Combat Pursuer 15 | . 15 . . . Influence Decreases 223 | 15 27 . . 181 Time Decay 192 | 15 27 . . 150 Lost Part 31 | . . . . 31 Squads Dispatched 1 | . 1 . . . Investigation 1 | . 1 . . . Extermination . | . . . . . Reinforcement . | . . . . . Assault . | . . . . . Garrison . | . . . . . Intercept . | . . . . . Searches Triggered . | . . . . . Construction Impeded . | . . . . . Haulers Reinforced . | . . . . . Active Scanning Responses . | . . . . . Cargo Convoy Interrupts . | . . . . . Stealth | -11 -10 -10 -10 -9 --------- Run | Yrd Mat Min Exi Min Distress Signals 1 | . 1 . . . Communications Jammed . | . . . . . Distress Signals . | . . . . . Times Spotted 24 | . 1 3 . 20 Peak Tracking Total 12 | . 1 3 . 12 Tactical Retreats 3 | . 1 . . 2 Traps | -11 -10 -10 -10 -9 ------- Run | Yrd Mat Min Exi Min Traps Triggered . | . . . . . Indirectly . | . . . . . Trap Hack Attempts . | . . . . . Triggered . | . . . . . Disarmed . | . . . . . Reprogrammed . | . . . . . Reused . | . . . . . Traps Extracted . | . . . . . Installed . | . . . . . Triggered . | . . . . . Machines | -11 -10 -10 -10 -9 ---------- Run | Yrd Mat Min Exi Min Machines Disabled . | . . . . . Max in Single Turn . | . . . . . Machines Repaired . | . . . . . Machines Dismantled . | . . . . . Machines Sabotaged . | . . . . . Overloaded Fab Kills . | . . . . . Hacking | -11 -10 -10 -10 -9 --------- Run | Yrd Mat Min Exi Min Machines Accessed 3 | . 1 . 2 . Terminals 1 | . 1 . . . Fabricators . | . . . . . Repair Stations . | . . . . . Recycling Units . | . . . . . Scanalyzers . | . . . . . Garrison Access . | . . . . . Total Hacks 4 | . 2 . 2 . Successful 2 | . . . 2 . Failed 2 | . 2 . . . Catastrophic . | . . . . . Database Lockouts . | . . . . . Manual 3 | . 2 . 1 . Terminals 2 | . 2 . . . Fabricators . | . . . . . Repair Stations . | . . . . . Recycling Units . | . . . . . Scanalyzers . | . . . . . Garrison Access . | . . . . . Terminal Hacks 2 | . . . 2 . Record 1 | . . . 1 . Proto ID Catalog 1 | . . . 1 . Fabricator Hacks . | . . . . . Repair Station Hacks . | . . . . . Recycling Unit Hacks . | . . . . . Scanalyzer . | . . . . . Garrison Access Hacks . | . . . . . Unauthorized Hacks . | . . . . . Terminals . | . . . . . Fabricators . | . . . . . Repair Stations . | . . . . . Recycling Units . | . . . . . Scanalyzers . | . . . . . Garrison Access . | . . . . . Data Cores Recovered . | . . . . . Used . | . . . . . Hacking Detections 1 | . 1 . . . Full Trace Events . | . . . . . Feedback Events . | . . . . . Feedback Blocked . | . . . . . Robot Schematics Acquired . | . . . . . Robots Built . | . . . . . Authchips . | . . . . . Time . | . . . . . Total Robot Build Rating . | . . . . . Part Schematics Acquired . | . . . . . Parts Built . | . . . . . Authchips . | . . . . . Time . | . . . . . Total Part Build Rating . | . . . . . Parts Repaired . | . . . . . Time . | . . . . . Parts Recycled . | . . . . . Recycled Matter . | . . . . . Retrieved Matter . | . . . . . Retrieved Components . | . . . . . Parts Scanalyzed . | . . . . . Part Schematics Acquired . | . . . . . Parts Damaged . | . . . . . Bothacking | -11 -10 -10 -10 -9 ------------ Run | Yrd Mat Min Exi Min Used RIF Installer . | . . . . . Robots Hacked . | . . . . . Non-combat . | . . . . . Combat . | . . . . . Robot Hacks Applied . | . . . . . Relay Couplers Released . | . . . . . Fabnet Peak Effective % . | . . . . . Robots Rewired . | . . . . . Allies Hacked . | . . . . . Hacks Repelled . | . . . . . Allies | -11 -10 -10 -10 -9 -------- Run | Yrd Mat Min Exi Min Total Allies . | . . . . . Largest Group . | . . . . . Highest-Rated Group . | . . . . . Highest-Rated Ally . | . . . . . Total Orders . | . . . . . Ally Attacks . | . . . . . Total Damage . | . . . . . Kills . | . . . . . Allies Corrupted . | . . . . . Allies Melted . | . . . . . Intel | -11 -10 -10 -10 -9 ------- Run | Yrd Mat Min Exi Min Active Infowar (turns) 960 | 17 232 96 289 326 Seismic 960 | 17 232 96 289 326 Robot Analysis Total . | . . . . . Derelict Logs Recovered 1 | . . . . 1 Drone Launches . | . . . . . Drone Recoveries . | . . . . . Exploration | -11 -10 -10 -10 -9 ------------- Run | Yrd Mat Min Exi Min Turns Passed 1360 | 139 232 96 289 604 Spaces Moved 954 | 68 132 75 341 338 Core 8 | 8 . . . . Treads 419 | 60 132 31 1 195 Legs 72 | . . . . 72 Wheels 455 | . . 44 340 71 Hover . | . . . . . Flight . | . . . . . Fastest Speed 50 | 50 160 80 80 80 Average Speed 117 | 147 160 113 80 134 Slowest Speed 160 | 160 160 160 160 160 Overloaded Moves . | . . . . . Propulsion Burnouts . | . . . . . Robots Hopped . | . . . . . Potential Cave-ins . | . . . . . Cave-ins Triggered . | . . . . . Exploration Rate (%) 39 | 5 30 28 68 66 Regions Visited 4 Branch Regions 3 Pre-discovered Areas 2 | . . . 1 1 Known Exits Taken . | . . . . . Unknown Exits Taken 4 | 1 1 1 1 . Scrap Searched 3 | . . 1 . 2 Spaces Dug . | . . . . . Terrain Destroyed 1 | . . . . 1 Melee . | . . . . . Projectile . | . . . . . AOE 1 | . . . . 1 Terrain Rammed . | . . . . . Walls Destroyed . | . . . . . Machines Disabled . | . . . . . Actions | -11 -10 -10 -10 -9 --------- Run | Yrd Mat Min Exi Min Total 1106 | 93 146 84 356 427 Wait 47 | . 5 7 7 28 Move 950 | 67 131 74 340 338 Hop . | . . . . . Pick Up 25 | 12 2 . 5 6 Fast Attach 1 | . . . . 1 Attach 16 | 7 2 . . 7 Detach . | . . . . . Swap 12 | . . 3 3 6 Drop 4 | . 2 . 1 1 Fire 51 | 7 4 . . 40 Melee . | . . . . . Ram . | . . . . . Kick . | . . . . . Crush . | . . . . . Escape Stasis . | . . . . . Rewire . | . . . . . Trap . | . . . . . Miscellaneous . | . . . . . Route ------- -11/Scrapyard -10/Materials (discovered 2 exits: [*Mat] / [*Min]) -10/Mines -10/Exiles -9/Mines History --------- Turn | Location | Event 7 | -11/Scrapyard | Discovered new exit (range 16) 140 | -11/Scrapyard | Entered Materials 251 | -10/Materials | Met 8R-AWN 293 | -10/Materials | Discovered new exit (range 16) 315 | -10/Materials | Build established: Mutant 343 | -10/Materials | Discovered new exit (range 6) 372 | -10/Materials | Entered Mines 374 | -10/Mines | Followed 8R-AWN into the Mines 465 | -10/Mines | Discovered new exit (range 5) 468 | -10/Mines | Entered Exiles 488 | -10/Exiles | Welcomed by 8R-AWN 501 | -10/Exiles | Met EX-HEX 546 | -10/Exiles | Met EX-DEC 559 | -10/Exiles | Learned location of Zion (-6) 622 | -10/Exiles | Met EX-BIN 634 | -10/Exiles | Aligned with FarCom system 635 | -10/Exiles | Given EX-Vault access code 654 | -10/Exiles | Opened EX-Vault 659 | -10/Exiles | Found Superbattery 675 | -10/Exiles | Warned to stay clear of 0b10 Research branches 736 | -10/Exiles | Discovered new exit (range 15) 757 | -10/Exiles | Left Exiles lab with Superbattery 757 | -10/Exiles | Entered Mines 758 | -9/Mines | Learned location of Storage (-7) 985 | -9/Mines | Lost 3 parts (1p1n1w) 1004 | -9/Mines | Learned 8 Materials zone layouts 1197 | -9/Mines | Core integrity fell below 50% 1224 | -9/Mines | Lost 4 parts (1p1n1u1w) 1282 | -9/Mines | Assembled infested the area 1287 | -9/Mines | Assisted by a Guerilla fighting off Assembled 1358 | -9/Mines | Core integrity fell below 20% 1361 | -9/Mines | Destroyed by D-53 Grenadier with Mini Grenade Launcher Last Messages --------------- group of Assembled to figure out where they're coming from, and they're closing on this area, come on!" 01299_ Hvy. EM Pulse Gun destroyed. 01319_ as-83457 sneak attacks. 01319_ K-01 Serf system corrupted by crushing effect. 01325_ K-01 Serf destroyed. 01353_ Lgt. Assault Rifle destroyed. 01355_ Wheel destroyed. 01355_ as-17164 destroyed. 01355_ as-80821 destroyed. 01356_ U-05 Engineer lays Concrete. 01357_ Lgt. Assault Rifle destroyed. 01357_ Wheel destroyed. 01357_ U-05 Engineer lays Concrete. 01359_ as-83457 destroyed. 01359_ as-61053 destroyed. 01359_ D-53 Grenadier destroyed. 01359_ U-05 Engineer lays Concrete. Map ----- +----------------------------------------------------+ | ???????????????????????????????????????????????? | | ???????????????????????????????????????????????? | | ???????????????????????????????????????????????? | | ???????????????????????????????????????????????? | | ???????????????????????????????????????????????? | | ???????????????????????????????????????????????? | | ???????????????????????????????????????????????? | | ???????????????????????????????????????????????? | | ???????????????????????????????????????????????? | | ???????????????????????????????????????????????? | | ???????????????????????????????????????????????? | | ??????????????????????????? ???????????????????? | | ??????????????????????????? ##???????????#####? | | ??????????????????????????? ##?????????## ## | | ?????????????????????????? #?????????# | | ?????????????????#???????? ??????????# | | ?????????????????? ??????? ??????????## | | ?????????????????? ###???# ????????????## | | ??????????????????? ??# ??????????????## | | ????????????????#### ## ????????????????#### | | ???????????????## # u ???????????????????? | | ?????????????### ????????????????????? | | ???????????### #% ?????????????????????? | | ???????????# % ##????????????????????? | | ?????????? % ###??????????????????? | | ????????# % # @ ##?????????????????? | | ????????# % d #?????????????????? | | ????????# # ##?????????????????? | | ????????? #?????????????????? | | ????????? % ### #?????????????????? | | ????????? ???# ##?????????????????? | | ?????????? ?????## #??????????????????? | | ??##?????? ????????# #????????????????? | | ??# ???????????????## ###????????????????? | | ??# ????????????????## ##????????????????? | | ??# ????????????????# ##???????????????? | | ??# ??????????????## ##??????????????? | | ??# ??????????????# ##?????????????? | | ???# ?????????????# ##?????????????? | | ????# #????????????## #?????????????? | | ???## ?????????????## #??????????????# | | ??## ?????????????#### ##?????????????## | | ??# #####????####???## ##????????????## | | ??# #???## ##??## #??????????### | | ???# ### #???# #### #?????????## | | ???####????# #???# ## ####?????## | | ???????????# #???# #?????# | | ???????????# #???# #????## | | ???????????# #???## ######### #??### | | ???????????# #????# ####???????? #?## % | +----------------------------------------------------+ Best States ------------- Heat Dissipation 25 Energy Generation 10 Energy Capacity 250 Matter Stores 300 Matter Capacity 300 Sight Range 16 Terrain Scan Density 10 Evasion (%) 55 Recoil Reduction 2 Item Schematics ----------------- None Robot Schematics ------------------ None Fabricated ------------ Nothing Repaired ---------- Nothing Alien Tech Used ----------------- None Achievements -------------- None Challenges ------------ None Game ------ Seed ShadeFieldCompanion Manual? 0 Play Time 00:11:09 Cumulative 198.6 hours Start 2025.08.25 @ 08:39:00 End 2025.08.25 @ 08:49:21 Sessions 1 Manual Loads 0 Difficulty Rogue Special Mode None Game No. 305 Rogue 305 Adventurer 0 Explorer 0 Win Type - Total 4 Types 3/0/1/0/0/0/0/0/0/0 Lore% 79 Gallery% 75 Achievement% 55 Wizard Run 0 Options --------- Layout 1 ASCII 0 Keyboard 0 Movement Mouse Keybinds 0 Fullscreen 1 Font 24/Smallcaps Map View 50x40 Zoom Use 0% Tactical HUD 1 Map Filters NONE Filters NONE Steam 1 RUN: 7c90e9c8-97f5-49d9-a552-93602970e71b